bitfinex-derivatives/quotes_ETHF0:USTF0_20250919
["timestamp","ask_amount","ask_price","bid_price","bid_amount"]
[1758283561174,1.4960226,4520.2,4520.1,0.4125]
[1758283562075,1.4960226,4520.2,4520.1,0.2049]
[1758283562678,1.4960226,4520.2,4520.1,1.12581]
[1758283563776,1.4960226,4520.2,4520.1,0.7278]
[1758283564478,1.4960226,4520.2,4520.1,1.12581]
[1758283564976,1.4960226,4520.2,4520.1,0.7278]
[1758283566476,1.4960226,4520.2,4520.1,1.12581]
[1758283568182,1.4960226,4520.2,4520.1,0.7278]
[1758283568884,1.4960226,4520.2,4520.1,1.12581]
[1758283570686,1.4960226,4520.2,4520.1,0.7278]
[1758283571084,1.4960226,4520.2,4520.1,0.2049]
[1758283572188,1.4960226,4520.2,4520.1,0.60291]
[1758283572785,1.4960226,4520.2,4520.1,0.91821]
[1758283573989,1.4960226,4520.2,4520.1,0.5202]
[1758283574494,1.4960226,4520.2,4520.1,0.2049]
[1758283575088,1.4914316,4520.2,4520.1,0.2049]
[1758283575588,1.4914316,4520.2,4520.1,0.91821]
[1758283575885,1.4914316,4520.2,4520.1,1.12581]
[1758283576088,0.7571316,4520.2,4520.1,1.12581]
[1758283576288,1.2831316,4520.2,4520.1,1.12581]
[1758283576485,1.4914316,4520.2,4520.1,1.12581]
[1758283577191,1.4914316,4520.2,4520.1,0.7278]
[1758283577488,0.212,4519.5,4519.4,1.14797]
[1758283577691,0.526,4519.5,4519.4,1.14797]
[1758283577886,0.526,4519.5,4519.4,1.12587]
[1758283577887,0.76135317,4519.5,4519.4,1.12587]
[1758283578088,1.09685317,4519.5,4519.4,0.2049]
[1758283578294,1.61921878,4519.5,4519.1,0.3153]
[1758283578488,0.4203,4519.2,4519.1,0.9183]
[1758283578695,0.96965317,4519.2,4519.1,0.9183]
[1758283579193,1.4922012,4519.2,4519.1,0.9183]
[1758283579394,1.4922012,4519.2,4519.1,0.603]
[1758283580788,1.4922012,4519.2,4519.1,0.9183]
[1758283582391,1.4922012,4519.2,4519.1,1.1259]
[1758283582798,1.49248502,4519.2,4519.1,1.1259]
[1758283583598,1.49299997,4519.2,4519.1,1.1259]
[1758283586198,1.28469997,4519.2,4519.1,1.1259]
[1758283586398,0.75869997,4519.2,4519.1,5.34718]
[1758283586800,0.75869997,4519.2,4519.1,5.1259]
[1758283587495,0.75869997,4519.2,4519.1,5.34718]
[1758283587691,0.314,4520.0,4519.9,0.81053]
[1758283587894,0.526,4520.0,4519.9,1.12583]
[1758283588097,1.04935253,4520.0,4519.9,1.12583]
[1758283589699,0.83735253,4520.0,4519.9,1.12583]
[1758283590800,1.03885253,4520.0,4519.9,1.12583]
[1758283594005,0.83735253,4520.0,4519.9,1.12583]
[1758283594303,0.314,4520.0,4519.9,1.12583]
[1758283598115,0.5155,4520.0,4519.9,1.12583]
[1758283598515,0.314,4520.0,4519.9,1.12583]
[1758283598716,0.7095,4520.5,4520.4,0.92328]
[1758283598906,1.01049398,4520.5,4520.4,0.92328]
[1758283599110,1.01049398,4520.5,4520.4,1.11848]
[1758283599415,1.30339398,4520.5,4520.4,1.11848]
[1758283599615,1.53488747,4520.5,4520.4,1.11848]
[1758283613824,1.45658747,4520.5,4520.4,1.11848]
[1758283614025,1.58312691,4520.5,4520.4,1.11848]
[1758283617829,1.45652691,4520.5,4520.4,1.11848]
[1758283618330,0.75442691,4520.5,4520.4,1.11848]
[1758283618724,0.23143293,4520.5,4520.4,1.11848]
[1758283619328,0.52693293,4520.5,4520.4,1.11848]
[1758283620132,0.73713293,4520.5,4520.4,1.11848]
[1758283620630,0.23143293,4520.5,4520.4,1.11848]
[1758283622330,1.07793293,4520.5,4520.4,0.80378]
[1758283622624,1.60088517,4520.5,4520.4,0.59618]
[1758283622829,1.60088517,4520.5,4520.4,0.90098]
[1758283623231,1.60088517,4520.5,4520.4,1.11078]
[1758283626733,1.47328517,4520.5,4520.4,1.11078]
[1758283627435,0.23143293,4520.5,4520.4,1.11078]
[1758283628831,0.75448725,4520.5,4520.4,1.11078]
[1758283630640,1.04998725,4520.5,4520.4,1.11078]
[1758283631939,0.54372424,4520.5,4520.4,1.11078]
[1758283632441,0.52305432,4520.5,4520.4,1.11078]
[1758283632944,0.5057,4520.8,4520.7,1.11076]
[1758283633237,1.02863832,4520.8,4520.7,1.11076]
[1758283635641,0.5057,4520.8,4520.7,1.11076]
[1758283635847,0.5057,4520.8,4520.4,0.39798]
[1758283635848,0.2955,4521.5,4521.4,1.11069]
[1758283636046,0.7189,4521.5,4521.4,1.11069]
[1758283636346,1.36914235,4521.5,4521.4,0.80589]
[1758283638037,1.36914235,4521.5,4520.8,0.3048]
[1758283638242,0.7189,4520.9,4520.8,0.39795]
[1758283639542,1.24124528,4520.9,4520.8,0.39795]
[1758283639841,1.24124528,4520.9,4520.1,0.61831]
[1758283639842,0.7189,4520.2,4520.1,0.61831]
[1758283640144,0.7189,4520.2,4520.1,0.39801]
[1758283640546,0.7189,4520.2,4520.1,0.59621]
[1758283640745,0.7189,4520.2,4520.1,0.39801]
[1758283642051,1.24138219,4520.2,4520.1,0.39801]
[1758283642243,0.7189,4520.2,4520.1,0.39801]
[1758283643144,0.5087,4519.9,4519.3,0.503]
[1758283643444,0.8465,4519.5,4519.4,0.59627]
[1758283643746,0.8465,4519.5,4519.4,0.61837]
[1758283643946,1.07602557,4519.5,4519.4,0.61837]
[1758283644947,1.07602557,4519.5,4519.4,1.13297]
[1758283645543,0.73522557,4519.5,4519.4,1.13297]
[1758283645745,0.73522557,4519.5,4519.4,1.11087]
[1758283646150,0.94842557,4519.5,4519.4,1.11087]
[1758283647451,0.7189,4519.5,4519.4,1.11087]
[1758283649140,0.8469,4519.5,4519.4,0.80607]
[1758283649345,0.8469,4519.5,4519.4,1.10847]
[1758283649544,1.07614122,4519.5,4519.4,1.10847]
[1758283650353,0.7189,4519.5,4519.4,1.10847]
[1758283650852,0.5057,4519.5,4519.4,1.10847]
[1758283653249,0.3322,4520.0,4519.9,0.39803]
[1758283653553,0.76406832,4520.0,4519.9,1.11123]
[1758283653860,0.22916832,4520.0,4519.9,1.11123]
[1758283654057,0.52186832,4520.0,4519.9,1.11123]
[1758283655557,0.2927,4520.0,4519.9,1.11123]
[1758283656956,0.8276,4520.5,4520.4,1.11118]
[1758283657956,1.05551084,4520.5,4520.4,0.60578]
[1758283660161,0.8276,4520.5,4520.4,0.60578]
[1758283667561,1.28352355,4520.5,4520.3,0.39798]
[1758283667762,1.44862355,4520.4,4520.3,0.39798]
[1758283668968,0.92809658,4520.4,4520.3,0.39798]
[1758283669564,0.92809658,4520.4,4520.3,0.60578]
[1758283670364,0.92809658,4520.4,4520.3,1.11118]
[1758283681275,1.44928284,4520.4,4520.3,1.11118]
[1758283685783,1.44970421,4520.4,4520.3,1.11118]
[1758283686778,1.44970421,4520.4,4520.3,0.80878]
[1758283686987,1.44970421,4520.4,4520.1,0.0221]
[1758283687187,0.7,4520.4,4520.3,0.39799]
[1758283687377,1.45038568,4520.4,4520.3,0.39799]
[1758283688076,1.15768568,4520.4,4520.1,0.0221]
[1758283688283,0.3994,4520.2,4520.1,0.0221]
[1758283688476,0.3994,4520.2,4519.6,0.39805]
[1758283688477,0.3994,4519.7,4519.6,0.39805]
[1758283688678,0.8194,4519.0,4518.9,1.10101]
[1758283688882,1.04802436,4519.0,4518.9,1.10101]
[1758283689283,0.8194,4519.0,4518.9,1.10101]
[1758283689482,0.8194,4519.0,4518.9,0.79611]
[1758283689784,1.0478553,4519.0,4518.9,1.10101]
[1758283689988,1.0478553,4519.0,4518.9,0.59801]
[1758283691988,1.0478553,4519.0,4518.9,0.90291]
[1758283692194,1.0478553,4519.0,4518.9,1.10101]
[1758283693296,0.6992,4519.0,4518.9,1.10101]
[1758283694189,0.8194,4519.0,4518.9,1.10101]
[1758283696196,0.6992,4519.0,4518.9,1.10101]
[1758283696895,0.8194,4519.0,4518.9,0.39811]
[1758283697594,0.8194,4519.0,4518.9,0.59801]
[1758283697790,0.8194,4519.0,4518.9,0.90291]
[1758283699903,0.8194,4519.0,4518.9,0.59801]
[1758283701702,0.8194,4519.0,4518.9,0.90291]
[1758283702302,0.6992,4519.0,4518.9,1.10101]
[1758283702904,0.8194,4519.0,4518.9,1.10101]
[1758283703105,0.6992,4519.0,4518.9,1.10101]
[1758283703405,0.495,4519.0,4518.9,1.10101]
[1758283705304,0.6992,4519.0,4518.9,1.10101]
[1758283707102,0.8194,4519.0,4518.9,1.10101]
[1758283707607,0.6992,4519.0,4518.9,1.10101]
[1758283711509,0.8196,4519.0,4518.9,1.10101]
[1758283714211,0.6992,4519.0,4518.9,1.10101]
[1758283715914,0.93431718,4519.0,4518.9,1.10101]
[1758283716313,0.93445287,4519.0,4518.9,1.10101]
[1758283718215,1.25417178,4519.0,4518.9,1.10101]
[1758283718906,0.73025287,4519.0,4518.9,1.10101]
[1758283720912,0.21315287,4519.0,4518.9,1.10101]
[1758283721622,0.21315287,4519.0,4518.9,1.3223]
[1758283721918,0.21315287,4519.0,4518.9,1.10101]
[1758283724916,1.05875287,4519.0,4518.9,0.39811]
[1758283725212,0.7252,4518.4,4518.3,0.62887]
[1758283725621,0.7252,4518.4,4518.3,1.13187]
[1758283726923,0.7252,4518.4,4518.3,1.10977]
[1758283729422,0.5289,4518.4,4518.3,1.10977]
[1758283738126,0.1204,4519.0,4518.9,0.39811]
[1758283738326,0.1204,4519.0,4518.9,1.11831]
[1758283738327,0.4112,4519.0,4518.9,1.11831]
[1758283738529,0.23502995,4519.0,4518.9,1.11831]
[1758283738729,0.7078,4519.4,4519.3,1.11828]
[1758283738927,0.94285606,4519.4,4519.3,1.11828]
[1758283740232,0.7078,4519.4,4519.3,1.11828]
[1758283740533,0.94283349,4519.4,4519.3,1.11828]
[1758283745135,0.94283349,4519.4,4519.3,0.39808]
[1758283745939,0.93704266,4519.4,4519.3,0.39808]
[1758283748439,0.8255,4519.0,4518.9,0.4264]
[1758283748640,0.8255,4519.0,4518.9,0.82451]
[1758283748844,0.8255,4519.0,4518.9,0.60251]
[1758283749044,0.8255,4519.0,4518.9,0.39811]
[1758283750141,0.8255,4519.0,4518.9,0.60251]
[1758283750437,0.8255,4519.0,4518.9,1.11831]
[1758283756848,0.7078,4519.0,4518.9,1.11831]
[1758283757947,0.8255,4519.0,4518.9,1.11831]
[1758283758848,0.7078,4519.0,4518.9,1.11831]
[1758283759048,0.4976,4519.0,4518.9,1.11831]
[1758283759646,0.1177,4519.5,4519.4,0.39807]
[1758283759852,0.4976,4519.5,4519.4,1.11827]
[1758283760049,0.2966,4519.8,4519.7,0.80554]
[1758283760246,0.52583345,4519.8,4519.7,1.11824]
[1758283760747,0.72683345,4519.8,4519.7,1.11824]
[1758283763556,0.93703345,4519.8,4519.7,1.11824]
[1758283768058,0.93703345,4519.8,4519.7,0.80554]
[1758283768259,0.93703345,4519.8,4519.7,1.09754]
[1758283772255,0.93703345,4519.8,4519.7,0.39804]
[1758283772461,0.7153,4519.4,4519.3,0.60818]
[1758283774164,0.7153,4519.4,4519.3,1.09888]
[1758283776766,0.5122,4519.7,4519.6,0.4088]
[1758283776960,0.7447817,4519.7,4519.6,1.09885]
[1758283777360,0.9478817,4519.7,4519.6,1.09885]
[1758283784772,0.2325817,4519.7,4519.6,1.09885]
[1758283785165,0.7447817,4519.7,4519.6,1.09885]
[1758283788170,0.9478817,4519.7,4519.6,1.09885]
[1758283788871,0.9478817,4519.7,4519.6,0.80685]
[1758283789070,0.9478817,4519.7,4519.6,0.39805]
[1758283789473,0.9478817,4519.7,4519.6,0.60815]
[1758283789873,0.9478817,4519.7,4519.6,0.90015]
[1758283790574,0.9478817,4519.7,4519.6,1.09885]
[1758283792376,0.2325817,4519.7,4519.6,1.09885]
[1758283792677,0.5392817,4519.7,4519.6,1.09885]
[1758283792878,0.7447817,4519.7,4519.6,1.09885]
[1758283793077,0.2325817,4519.7,4519.6,1.09885]
[1758283793478,0.4380817,4519.7,4519.6,1.09885]
[1758283793672,0.7447817,4519.7,4519.6,1.09885]
[1758283793976,0.5122,4519.7,4519.6,1.09885]
[1758283794177,0.74499872,4519.7,4519.6,1.09885]
[1758283796676,0.23279872,4519.7,4519.6,1.09885]
[1758283796883,0.5285,4520.0,4519.9,1.12752]
[1758283797183,0.96886444,4520.0,4519.9,1.12752]
[1758283797480,1.08926444,4520.0,4519.9,1.12752]
[1758283798880,1.08926444,4520.0,4519.9,0.81052]
[1758283799487,1.08926444,4520.0,4519.9,0.60462]
[1758283800688,1.08926444,4520.0,4519.9,0.91532]
[1758283803184,1.08926444,4520.0,4519.9,0.60462]
[1758283803388,0.8538,4519.5,4519.4,0.42017]
[1758283803586,1.08647726,4519.5,4519.4,0.42017]
[1758283803786,1.08647726,4519.5,4519.4,0.39807]
[1758283804193,1.6091798,4519.5,4519.4,0.39807]
[1758283804588,1.60919433,4519.5,4519.4,0.39807]
[1758283804792,0.8538,4519.0,4518.8,0.9953]
[1758283804988,0.7263,4518.6,4518.5,0.9586]
[1758283805890,0.7263,4518.6,4518.5,1.35675]
[1758283806492,0.5287,4518.6,4518.5,1.35675]
[1758283812898,0.1275,4519.0,4518.5,0.9586]
[1758283813100,0.1275,4519.0,4518.9,0.39811]
[1758283813404,0.3405,4519.0,4518.9,0.82401]
[1758283813607,0.8538,4519.0,4518.9,1.13471]
[1758283814607,0.8538,4519.0,4518.9,0.82401]
[1758283815401,0.8538,4519.0,4518.9,0.61131]
[1758283817210,0.8538,4519.0,4518.9,0.39811]
[1758283818708,0.8538,4519.0,4518.9,0.61131]
[1758283819413,0.8538,4519.0,4518.9,0.92201]
[1758283820910,0.8538,4519.0,4518.9,1.13471]
[1758283822612,0.8538,4519.0,4518.9,0.61131]
[1758283827814,0.8538,4519.0,4518.9,0.39811]
[1758283829214,1.08987754,4519.0,4518.9,0.39811]
[1758283829617,1.06867754,4519.0,4518.9,0.39811]
[1758283832012,1.06867754,4519.0,4518.9,0.59601]
[1758283833211,0.85567754,4519.0,4518.9,0.80921]
[1758283833518,1.04947754,4519.0,4518.9,1.12881]
[1758283833717,1.04947754,4519.0,4518.9,0.80921]
[1758283834412,1.04947754,4519.0,4518.9,0.39811]
[1758283834619,1.04947754,4519.0,4518.9,0.59601]
[1758283835520,1.04947754,4519.0,4518.9,0.39811]
[1758283838921,1.57301516,4519.0,4518.9,0.39811]
[1758283843620,0.2945,4518.9,4518.7,0.0221]
[1758283843828,1.4497841,4518.8,4518.7,0.0221]
[1758283844323,0.6902,4518.7,4518.6,0.39813]
[1758283844524,1.4497841,4518.7,4518.6,0.39813]
[1758283849029,0.92627754,4518.7,4518.6,0.39813]
[1758283849731,0.9296888,4518.7,4518.6,0.39813]
[1758283851727,0.92966972,4518.7,4518.6,0.39813]
[1758283859041,0.92966972,4518.7,4518.6,0.59603]
[1758283859240,0.92966972,4518.7,4518.6,1.11473]
[1758283859633,0.92966972,4518.7,4518.6,0.79593]
[1758283860438,0.92966972,4518.7,4518.6,1.11473]
[1758283861839,0.92966972,4518.7,4518.6,0.79593]
[1758283862040,0.92966972,4518.7,4518.6,0.39813]
[1758283864341,0.53396972,4518.7,4518.6,1.13023]
[1758283865040,0.74576972,4518.7,4518.6,1.13023]
[1758283865237,0.95486972,4518.7,4518.6,1.13023]
[1758283865941,0.95486972,4518.7,4518.6,0.81143]
[1758283866539,0.95486972,4518.7,4518.6,1.13023]
[1758283870144,0.95486972,4518.7,4518.6,0.81143]
[1758283871943,0.95486972,4518.7,4518.6,0.61153]
[1758283873144,1.47804042,4518.7,4518.6,0.39813]
[1758283877952,1.47804042,4518.7,4518.6,0.61153]
[1758283878152,1.47804042,4518.7,4518.6,1.13023]
[1758283878848,0.95486972,4518.7,4518.6,1.13023]
[1758283879952,0.95146972,4518.7,4518.6,0.93033]
[1758283880158,1.47460613,4518.7,4518.6,0.61153]
[1758283880358,1.18350613,4518.7,4518.5,0.39814]
[1758283880555,0.3402,4518.5,4518.4,0.0221]
[1758283880759,1.07986972,4518.5,4518.4,0.0221]
[1758283881056,0.4209,4518.2,4518.1,0.7321]
[1758283881256,0.95146972,4518.2,4518.1,0.81148]
[1758283881457,0.95146972,4518.2,4518.1,0.61158]
[1758283882550,0.95146972,4518.2,4518.1,0.93038]
[1758283882750,0.95146972,4518.2,4518.1,1.13028]
[1758283882959,0.53056972,4518.2,4518.1,1.13028]
[1758283883455,0.74236972,4518.2,4518.1,1.13028]
[1758283884660,0.95146972,4518.2,4518.1,1.13028]
[1758283889863,0.95071217,4518.2,4518.1,1.13028]
[1758283890160,0.52981217,4518.2,4518.1,1.13028]
[1758283890355,0.23871217,4518.2,4518.1,1.13028]
[1758283890762,0.53231217,4518.2,4518.1,1.13028]
[1758283890962,0.72871217,4518.2,4518.1,1.13028]
[1758283893966,0.93331217,4518.2,4518.1,1.13028]
[1758283894166,0.93331217,4518.2,4518.1,0.39818]
[1758283894367,0.8167,4518.0,4517.9,0.4203]
[1758283894666,1.05541217,4518.0,4517.9,0.3982]
[1758283895963,1.57814221,4518.0,4517.9,0.3982]
[1758283896364,0.6946,4516.9,4516.8,0.5137]
[1758283896565,0.6946,4516.9,4516.8,0.6087]
[1758283896757,0.92994339,4516.9,4516.8,0.3983]
[1758283897267,0.6946,4516.9,4516.8,0.3983]
[1758283898169,0.6946,4516.9,4516.8,0.6087]
[1758283901574,0.6946,4516.9,4516.8,0.912]
[1758283901970,0.6946,4516.9,4516.8,1.1189]
[1758283902167,0.6121,4517.5,4517.4,1.11884]
[1758283902362,0.49,4517.7,4517.6,0.60513]
[1758283902562,0.92928058,4517.7,4517.6,0.81553]
[1758283902965,0.92928058,4517.7,4517.6,1.11883]
[1758283904669,0.92928058,4517.7,4517.6,0.39823]
[1758283906267,0.6946,4517.7,4517.6,0.39823]
[1758283906566,0.92921892,4517.7,4517.6,0.39823]
[1758283906962,0.92921892,4517.7,4517.6,1.11883]
[1758283909568,0.6946,4517.7,4517.6,1.11883]
[1758283912376,0.9292968,4517.7,4517.6,1.11883]
[1758283915476,0.49,4518.4,4518.3,0.2104]
[1758283915688,1.45087406,4518.4,4518.3,0.60857]
[1758283916277,0.1221,4519.0,4518.9,0.39811]
[1758283916587,1.0117,4519.0,4518.9,0.60851]
[1758283916787,1.24654852,4519.0,4518.9,0.60851]
[1758283917086,1.24654852,4519.0,4518.9,0.39811]
[1758283917287,1.05154852,4519.0,4518.9,0.39811]
[1758283917486,1.27354852,4519.0,4518.9,0.39811]
[1758283918889,1.79518947,4519.0,4518.9,0.39811]
[1758283919375,1.79518947,4519.0,4518.7,0.39812]
[1758283919577,0.8551,4518.5,4518.4,0.90446]
[1758283919788,0.8551,4518.5,4518.4,0.59746]
[1758283920178,1.08997164,4518.5,4518.4,0.59746]
[1758283920893,0.96227164,4518.5,4518.4,1.10866]
[1758283921389,0.54747164,4518.5,4518.4,1.10866]
[1758283921991,0.23487164,4518.5,4518.4,1.10866]
[1758283923195,0.75967164,4518.5,4518.4,1.10866]
[1758283923385,0.96227164,4518.5,4518.4,1.10866]
[1758283923588,1.08997164,4518.5,4518.4,1.10866]
[1758283926299,0.96227164,4518.5,4518.4,1.10866]
[1758283926496,0.54747164,4518.5,4518.4,1.10866]
[1758283928095,0.75967164,4518.5,4518.4,1.10866]
[1758283928500,0.23487164,4518.5,4518.4,1.10866]
[1758283928695,0.7274,4519.4,4519.3,0.59738]
[1758283928897,1.48171058,4519.4,4519.3,0.59738]
[1758283929891,1.48171058,4519.4,4519.3,1.10858]
[1758283930589,1.48170641,4519.4,4519.3,1.10858]
[1758283930799,0.9601577,4519.4,4519.3,1.10858]
[1758283931797,0.9601577,4519.4,4519.3,0.80158]
[1758283932002,0.96012941,4519.4,4519.3,0.80158]
[1758283934802,0.96012941,4519.4,4519.3,1.10858]
[1758283935996,0.3126,4519.7,4519.6,1.10855]
[1758283936197,0.6368,4520.3,4520.2,0.5973]
[1758283936392,1.16889242,4520.3,4520.2,0.5973]
[1758283936902,1.48149242,4520.3,4520.2,0.5973]
[1758283938500,0.3126,4520.2,4520.0,0.39801]
[1758283938698,0.96014718,4520.1,4520.0,0.39801]
[1758283940600,0.96014718,4520.1,4520.0,0.59731]
[1758283942803,0.96014718,4520.1,4520.0,0.90431]
[1758283944601,0.96014718,4520.1,4520.0,0.59731]
[1758283951108,0.96041165,4520.1,4520.0,0.59731]
[1758283955017,0.96041165,4520.1,4520.0,0.39801]
[1758283956317,1.48282492,4520.1,4520.0,0.61271]
[1758283957213,1.48395474,4520.1,4520.0,0.61271]
[1758283960221,0.75894147,4520.1,4520.0,1.13681]
[1758283960514,0.95614147,4520.1,4520.0,0.39801]
[1758283961412,1.47926957,4520.1,4520.0,0.39801]
[1758283963508,1.47926957,4520.1,4520.0,0.61271]
[1758283966217,1.47926957,4520.1,4520.0,0.93121]
[1758283966619,1.47926957,4520.1,4520.0,0.61271]
[1758283967215,1.47926957,4520.1,4520.0,0.93121]
[1758283969420,1.47926957,4520.1,4520.0,0.61271]
[1758283973926,1.47926957,4520.1,4520.0,0.39801]
[1758283975523,1.47983319,4520.1,4520.0,0.39801]
[1758283977128,1.47983319,4520.1,4520.0,0.61271]
[1758283977437,1.47983319,4520.1,4520.0,0.39801]
[1758283977626,1.47983319,4520.1,4519.8,0.0221]
[1758283977627,0.1275,4520.0,4519.9,0.39802]
[1758283977824,1.8107732,4520.0,4519.9,0.39802]
[1758283978025,1.58953319,4520.0,4519.9,0.39802]
[1758283981034,1.58953319,4520.0,4519.9,1.10592]
[1758283981336,1.26813319,4520.0,4519.9,1.10592]
[1758283983137,0.222,4520.8,4520.7,0.39795]
[1758283983337,0.222,4520.8,4520.7,0.71615]
[1758283983539,0.4432,4520.8,4520.7,0.71615]
[1758283984132,14.31665526,4521.5,4520.6,0.3182]
[1758283984336,0.44319,4521.4,4520.8,0.71614]
[1758283984731,0.22119,4521.3,4520.8,0.39794]
[1758283984930,0.22119,4521.3,4520.9,0.3182]
[1758283985136,0.22119,4521.2,4520.9,0.3182]
[1758283985440,4.22118001,4521.3,4520.9,0.3182]
[1758283986747,4.0,4521.3,4520.8,0.39794]
[1758283987040,4.0,4521.3,4521.0,0.3182]
[1758283988241,4.0,4521.3,4520.9,0.3182]
[1758283988941,4.0,4521.3,4520.8,0.39794]
[1758283989143,4.0,4521.3,4521.0,0.3182]
[1758283989947,4.0,4521.3,4520.9,0.3182]
[1758283990241,4.0,4521.3,4521.0,0.3182]
[1758283990435,4.0,4521.3,4520.9,0.3182]
[1758283991234,4.0,4521.3,4520.8,0.39794]
[1758283991633,4.0,4521.3,4520.7,0.3182]
[1758283991845,0.222,4521.4,4520.8,0.3182]
[1758283993445,0.222,4521.4,4520.8,0.5144]
[1758283995749,0.74391697,4521.2,4521.1,0.3182]
[1758283997942,0.512221,4521.2,4521.1,0.3182]
[1758283998147,0.74391201,4521.2,4521.1,0.3182]
[1758283998448,0.74391201,4521.2,4521.1,0.7079]
[1758283998656,0.96591201,4521.2,4521.1,0.7079]
[1758283999551,0.74391201,4521.2,4521.1,0.7079]
[1758283999753,0.96591201,4521.2,4521.1,0.7079]
[1758284005855,0.96582433,4521.2,4521.1,0.7079]
[1758284008563,0.96582433,4521.2,4521.1,0.1995]
[1758284008860,0.96582433,4521.2,4521.1,0.5036]
[1758284011456,0.96582433,4521.2,4521.1,0.3041]
[1758284012052,0.96582433,4521.2,4520.0,0.1279]
[1758284012257,0.74382433,4521.1,4520.2,0.39799]
[1758284012458,0.74382433,4521.0,4520.5,0.3274]
[1758284012663,0.74382433,4520.9,4520.6,0.3041]
[1758284012862,0.74382433,4520.8,4520.6,0.3041]
[1758284013059,0.96582433,4520.7,4520.6,0.3041]
[1758284014762,0.96582433,4520.7,4520.6,0.5036]
[1758284020166,0.96582433,4520.7,4520.6,0.3041]
[1758284022762,0.96582433,4520.7,4520.6,0.5036]
[1758284023463,0.96582433,4520.7,4520.6,0.7022]
[1758284025968,0.74382433,4520.7,4520.6,0.7022]
[1758284026167,0.96582433,4520.7,4520.6,0.7022]
[1758284029975,0.74382433,4520.7,4520.6,0.7022]
[1758284030171,0.96582433,4520.7,4520.6,0.7022]
[1758284030979,0.74382433,4520.7,4520.6,0.7022]
[1758284031171,0.96582433,4520.7,4520.6,0.7022]
[1758284033376,0.74382433,4520.7,4520.6,0.7022]
[1758284033570,0.96582433,4520.7,4520.6,0.7022]
[1758284036880,0.74382433,4520.7,4520.6,0.7022]
[1758284037179,0.96582433,4520.7,4520.6,0.7022]
[1758284038081,0.74382433,4520.7,4520.6,0.7022]
[1758284038279,0.96582433,4520.7,4520.6,0.7022]
[1758284038480,0.96584267,4520.7,4520.6,0.7022]
[1758284045580,0.74384267,4520.7,4520.6,0.7022]
[1758284045785,0.96584267,4520.7,4520.6,0.7022]
[1758284046589,0.74384267,4520.7,4520.6,1.10016]
[1758284048291,0.7228051,4520.7,4520.6,1.10016]
[1758284053701,0.7228051,4520.7,4520.6,0.7022]
[1758284054002,0.7228051,4520.7,4520.6,1.10016]
[1758284054700,0.7228051,4520.7,4520.6,0.7022]
[1758284055000,0.7228051,4520.7,4520.6,1.10016]
[1758284059305,0.72269732,4520.7,4520.6,1.10016]
[1758284060307,0.7227058,4520.7,4520.6,1.10016]
[1758284097744,0.21046646,4520.7,4520.6,1.10016]
[1758284099748,0.22897475,4521.7,4521.6,0.59247]
[1758284099948,0.22897475,4521.7,4521.6,0.90967]
[1758284100148,0.74152361,4521.7,4521.6,0.90967]
[1758284101553,0.74152361,4521.7,4521.6,1.10557]
[1758284108159,0.74152361,4521.7,4521.6,0.5118]
[1758284108364,0.74152361,4521.7,4521.6,0.3172]
[1758284108660,0.74152361,4521.7,4521.6,0.71507]
[1758284109161,0.74152361,4521.7,4521.6,1.10557]
[1758284117460,0.22897475,4521.7,4521.6,1.10557]
[1758284117763,0.22897475,4521.7,4521.6,0.7077]
[1758284117965,0.74030866,4521.7,4521.6,0.7077]
[1758284119368,0.74030866,4521.7,4521.6,1.10557]
[1758284122467,0.74485881,4521.7,4521.6,1.10557]
[1758284125373,0.74485881,4521.7,4521.6,0.7077]
[1758284126275,0.74485881,4521.7,4521.6,1.10557]
[1758284130277,0.73190567,4521.7,4521.6,1.10557]
[1758284134284,0.73192924,4521.7,4521.6,1.10557]
[1758284150899,0.73192924,4521.7,4521.6,0.7077]
[1758284151204,0.73192924,4521.7,4521.6,0.3172]
[1758284152807,4.73192924,4521.7,4521.5,0.1207]
[1758284153009,0.95308924,4521.6,4521.5,0.4146]
[1758284153505,4.95308924,4521.6,4521.1,0.2939]
[1758284153803,0.95310925,4521.5,4521.0,0.1207]
[1758284154000,0.73192924,4521.4,4521.0,0.1207]
[1758284154201,0.73192924,4521.3,4521.1,0.2939]
[1758284154405,0.73192924,4521.2,4521.1,0.2939]
[1758284157608,0.73192924,4521.2,4521.0,0.4103]
[1758284157807,0.95392924,4521.1,4521.0,0.6194]
[1758284158511,0.95392924,4521.1,4521.0,0.8326]
[1758284158713,0.73192924,4521.1,4521.0,0.8326]
[1758284158906,0.95392924,4521.1,4521.0,0.8326]
[1758284164017,0.73192924,4521.1,4521.0,0.8326]
[1758284164212,0.95392924,4521.1,4521.0,0.8326]
[1758284164513,0.73192924,4521.1,4521.0,0.8326]
[1758284164816,0.08712924,4521.1,4521.0,5.23053]
[1758284165016,0.059,4521.9,4521.8,0.7075]
[1758284165219,0.5606,4521.9,4521.8,0.7075]
[1758284165418,0.7733,4521.9,4521.8,0.7075]
[1758284166010,0.7733,4521.9,4521.2,0.39791]
[1758284166216,0.7143,4521.4,4521.3,0.7075]
[1758284170126,0.7143,4521.4,4521.3,0.5059]
[1758284170624,0.7143,4521.4,4520.9,0.0221]
[1758284171026,0.833,4521.0,4520.9,0.528]
[1758284171223,1.055,4521.0,4520.9,0.528]
[1758284171426,1.055,4521.0,4520.9,0.5059]
[1758284176834,1.77539048,4521.0,4520.9,0.5059]
[1758284177636,1.77539048,4521.0,4520.7,0.0221]
[1758284177831,0.72039048,4520.9,4520.7,0.0221]
[1758284178138,1.43469048,4520.8,4520.7,0.0221]
[1758284178435,1.43469048,4520.8,4520.5,0.3053]
[1758284178634,0.7143,4520.6,4520.5,0.5059]
[1758284178829,1.43469048,4520.6,4520.5,0.5059]
[1758284180834,1.43469048,4520.6,4520.5,0.3053]
[1758284181038,0.7143,4520.2,4520.1,0.7075]
[1758284181235,1.43469048,4520.2,4520.1,0.7075]
[1758284183030,0.92763926,4520.2,4520.1,0.7075]